bitfinex/quotes_BTCUSD_20250916
["timestamp","ask_amount","ask_price","bid_price","bid_amount"]
[1758059087913,0.2494822,116780.0,116770.0,0.35452145]
[1758059088367,0.2494822,116780.0,116770.0,0.35552145]
[1758059089516,0.2494822,116780.0,116770.0,0.35452145]
[1758059089655,0.2494822,116780.0,116770.0,0.35352145]
[1758059089828,0.2504822,116780.0,116770.0,0.35352145]
[1758059092865,0.2494822,116780.0,116770.0,0.35352145]
[1758059093083,0.2494822,116780.0,116770.0,0.35452145]
[1758059093276,0.2494822,116780.0,116770.0,0.35552145]
[1758059097958,0.2494822,116780.0,116770.0,0.08860145]
[1758059098170,0.2494822,116780.0,116770.0,0.35548145]
[1758059099665,0.2494822,116780.0,116770.0,0.35448145]
[1758059100052,0.2504822,116780.0,116770.0,0.35448145]
[1758059100255,0.2504822,116780.0,116770.0,0.35348145]
[1758059101861,0.2812841,116780.0,116770.0,0.0001]
[1758059102007,0.2812841,116780.0,116770.0,0.26694]
[1758059102232,0.37981608,116780.0,116770.0,0.0001]
[1758059102622,0.20142876,116770.0,116760.0,0.26694]
[1758059102904,0.28014876,116770.0,116760.0,0.26694]
[1758059103317,0.28024876,116770.0,116760.0,0.26694]
[1758059103905,0.30597953,116770.0,116760.0,0.26694]
[1758059104313,0.30597953,116770.0,116760.0,0.26794]
[1758059105087,0.30597953,116770.0,116760.0,0.26894]
[1758059106828,0.02583077,116770.0,116760.0,0.53032298]
[1758059107046,0.0001,116770.0,116760.0,0.54700298]
[1758059108149,0.22136257,116780.0,116770.0,0.17127686]
[1758059108363,0.22136257,116780.0,116770.0,0.27689599]
[1758059108586,0.22136257,116780.0,116770.0,0.27644831]
[1758059109422,0.22236257,116780.0,116770.0,0.27654831]
[1758059112308,0.22236257,116780.0,116770.0,0.25986831]
[1758059112848,0.22236257,116780.0,116770.0,0.27654831]
[1758059113058,0.22236257,116780.0,116770.0,0.25986831]
[1758059113263,0.22236257,116780.0,116770.0,0.27654831]
[1758059117174,0.22236257,116780.0,116770.0,0.25986831]
[1758059121297,0.22236257,116780.0,116770.0,0.27654831]
[1758059121738,0.22236257,116780.0,116770.0,0.27814831]
[1758059122715,0.22136257,116780.0,116770.0,0.27814831]
[1758059122847,0.22136257,116780.0,116770.0,0.27914831]
[1758059123052,0.22136257,116780.0,116770.0,0.28014831]
[1758059123726,0.17136257,116780.0,116770.0,0.27854831]
[1758059123941,0.22136257,116780.0,116770.0,0.28014831]
[1758059124633,0.0001,116780.0,116770.0,0.28014831]
[1758059129450,0.1713622,116780.0,116770.0,0.28014831]
[1758059129686,0.0001,116780.0,116770.0,0.28014831]
[1758059129987,0.1713622,116780.0,116770.0,0.28014831]
[1758059135866,0.1713622,116780.0,116770.0,0.36238831]
[1758059139147,0.1713622,116780.0,116770.0,0.36078831]
[1758059139762,0.1713622,116780.0,116770.0,0.36238831]
[1758059140732,0.1713622,116780.0,116770.0,0.28014831]
[1758059144198,0.1713622,116780.0,116770.0,0.26346831]
[1758059144840,0.1713622,116780.0,116770.0,0.28014831]
[1758059145352,0.1713622,116780.0,116770.0,0.26346831]
[1758059145566,0.1713622,116780.0,116770.0,0.26186831]
[1758059147794,0.1713622,116780.0,116770.0,0.27854831]
[1758059148985,0.1713622,116780.0,116770.0,0.26186831]
[1758059150415,0.1713622,116780.0,116770.0,0.34410831]
[1758059155056,0.1713622,116780.0,116770.0,0.34410831]
[1758059159481,0.1713622,116780.0,116770.0,0.61122831]
[1758059159898,0.1713622,116780.0,116770.0,0.52898831]
[1758059161262,0.1713622,116780.0,116770.0,0.26186831]
[1758059161469,0.1713622,116780.0,116770.0,0.52894831]
[1758059162136,0.1713622,116780.0,116770.0,0.26186831]
[1758059162347,0.1713622,116780.0,116770.0,0.52894831]
[1758059162918,0.1713622,116780.0,116770.0,0.26186831]
[1758059163139,0.1713622,116780.0,116770.0,0.52894831]
[1758059163659,0.1713622,116780.0,116770.0,0.52890831]
[1758059175211,0.1713622,116780.0,116770.0,0.88743579]
[1758059188346,0.1713622,116780.0,116770.0,0.62039579]
[1758059188559,0.1713622,116780.0,116770.0,0.88723579]
[1758059193699,0.1713622,116780.0,116770.0,0.62039579]
[1758059194150,0.1713622,116780.0,116770.0,0.88723579]
[1758059194627,0.1713622,116780.0,116770.0,0.62039579]
[1758059194846,0.1713622,116780.0,116770.0,0.88723579]
[1758059198024,0.1713622,116780.0,116770.0,0.62039579]
[1758059198168,0.1713622,116780.0,116770.0,0.88723579]
[1758059199176,0.1713622,116780.0,116770.0,0.62039579]
[1758059199361,0.1713622,116780.0,116770.0,0.88723579]
[1758059202075,0.1733522,116780.0,116770.0,0.88723579]
[1758059202298,0.1713622,116780.0,116770.0,0.88723579]
[1758059202693,0.1733522,116780.0,116770.0,0.88723579]
[1758059204859,0.19907692,116780.0,116770.0,0.88723579]
[1758059211881,0.19907692,116780.0,116770.0,0.62039579]
[1758059212310,0.19907692,116780.0,116770.0,0.88723579]
[1758059212723,0.19907692,116780.0,116770.0,0.62039579]
[1758059212932,0.19907692,116780.0,116770.0,0.88723579]
[1758059214716,0.19907692,116780.0,116770.0,0.62039579]
[1758059214884,0.19907692,116780.0,116770.0,0.88723579]
[1758059216140,0.19708692,116780.0,116770.0,0.88723579]
[1758059216653,0.19922692,116780.0,116770.0,0.88723579]
[1758059220877,0.19708692,116780.0,116770.0,0.88723579]
[1758059221366,0.19922692,116780.0,116770.0,0.88723579]
[1758059221913,0.20239692,116780.0,116770.0,0.88723579]
[1758059222569,0.19922692,116780.0,116770.0,0.88723579]
[1758059223220,0.19708692,116780.0,116770.0,0.88723579]
[1758059223933,0.02582472,116780.0,116770.0,0.88883579]
[1758059224154,0.02582472,116780.0,116770.0,0.90551579]
[1758059224367,0.19708692,116780.0,116770.0,0.88723579]
[1758059224554,0.19708692,116780.0,116770.0,0.88524579]
[1758059224696,0.19923692,116780.0,116770.0,0.88524579]
[1758059224908,0.19923692,116780.0,116770.0,0.88724579]
[1758059225326,0.02582472,116780.0,116770.0,0.88724579]
[1758059225532,0.02582472,116780.0,116770.0,0.96948579]
[1758059225942,0.19708692,116780.0,116770.0,0.96948579]
[1758059233808,0.19708692,116780.0,116770.0,1.01428624]
[1758059235801,0.02582472,116780.0,116770.0,1.01428624]
[1758059241913,0.02582472,116780.0,116770.0,1.03256624]
[1758059243296,0.02582472,116780.0,116770.0,1.0582909]
[1758059244778,0.02582472,116780.0,116770.0,1.0400109]
[1758059245279,0.02582472,116780.0,116770.0,1.0416109]
[1758059245497,0.02582472,116780.0,116770.0,1.0582909]
[1758059247035,0.02582472,116780.0,116770.0,1.0566909]
[1758059249946,0.02582472,116780.0,116770.0,1.0400109]
[1758059250159,0.02797472,116780.0,116770.0,1.0400109]
[1758059250371,0.03103472,116780.0,116770.0,1.0400109]
[1758059250576,0.03103472,116780.0,116770.0,1.0380109]
[1758059250973,0.03103472,116780.0,116770.0,1.0400109]
[1758059251161,0.02797472,116780.0,116770.0,1.0400109]
[1758059253335,0.02797472,116780.0,116770.0,0.7731709]
[1758059253573,0.05570472,116780.0,116770.0,1.0379309]
[1758059253780,0.05570472,116780.0,116770.0,0.9556909]
[1758059254492,0.03103472,116780.0,116770.0,0.9578009]
[1758059257106,0.20229692,116780.0,116770.0,0.9578009]
[1758059257422,0.20229692,116780.0,116770.0,0.9556909]
[1758059257631,0.20229692,116780.0,116770.0,0.9578009]
[1758059259024,0.19923692,116780.0,116770.0,0.9578009]
[1758059259447,0.19923692,116780.0,116770.0,0.6910409]
[1758059259660,0.19923692,116780.0,116770.0,0.9578009]
[1758059261324,0.20237692,116780.0,116770.0,0.9578009]
[1758059262964,0.19923692,116780.0,116770.0,0.9578009]
[1758059263331,0.19923692,116780.0,116770.0,1.0400409]
[1758059263543,0.20237692,116780.0,116770.0,1.0400409]
[1758059263934,0.19923692,116780.0,116770.0,1.0400409]
[1758059269828,0.19923692,116780.0,116770.0,0.7732809]
[1758059270128,0.19923692,116780.0,116770.0,1.0400009]
[1758059271560,0.19708692,116780.0,116770.0,1.0400009]
[1758059271841,0.19708692,116780.0,116770.0,1.0566809]
[1758059272207,0.19708692,116780.0,116770.0,1.0400009]
[1758059273324,0.19708692,116780.0,116770.0,1.01427624]
[1758059276108,0.02582472,116780.0,116770.0,1.01427624]
[1758059279850,0.02783472,116780.0,116770.0,1.01427624]
[1758059282307,0.02582472,116780.0,116770.0,1.01427624]
[1758059282526,0.02582472,116780.0,116770.0,1.03095624]
[1758059283310,0.02582472,116780.0,116770.0,1.01427624]
[1758059286992,0.02582472,116780.0,116770.0,1.03095624]
[1758059287193,0.02582472,116780.0,116770.0,1.01427624]
[1758059288917,0.02582472,116780.0,116770.0,1.01587624]
[1758059289127,0.02582472,116780.0,116770.0,1.03255624]
[1758059289341,0.02582472,116780.0,116770.0,1.03095624]
[1758059289768,0.02582472,116780.0,116770.0,1.01427624]
[1758059291652,0.02582472,116780.0,116770.0,0.61094831]
[1758059291853,0.02582472,116780.0,116770.0,1.01427624]
[1758059294708,0.02582472,116780.0,116770.0,1.00427624]
[1758059295596,0.02582472,116780.0,116770.0,1.02095624]
[1758059295822,0.02582472,116780.0,116770.0,0.95945042]
[1758059297342,0.02795472,116780.0,116770.0,0.95945042]
[1758059299748,0.02582472,116780.0,116770.0,0.95945042]
[1758059300343,0.02795472,116780.0,116770.0,0.95945042]
[1758059304684,0.02582472,116780.0,116770.0,0.95945042]
[1758059305533,0.02582472,116780.0,116770.0,0.97773042]
[1758059305691,0.02582472,116780.0,116770.0,0.95945042]
[1758059315385,0.02582472,116780.0,116770.0,0.97613042]
[1758059316330,0.02582472,116780.0,116770.0,0.95945042]
[1758059324754,0.0001,116780.0,116770.0,0.97773042]
[1758059325154,0.0001,116780.0,116770.0,1.00345284]
[1758059325508,0.0001,116790.0,116780.0,0.1712622]
[1758059325796,0.0001,116790.0,116780.0,0.65007198]
[1758059326012,0.02582242,116790.0,116780.0,0.63503576]
[1758059326412,0.02582242,116790.0,116780.0,0.62871753]
[1758059326566,0.02582242,116790.0,116780.0,0.64549753]
[1758059326779,0.02682242,116790.0,116780.0,0.64549753]
[1758059332532,0.02682242,116790.0,116780.0,0.62881753]
[1758059332669,0.02682242,116790.0,116780.0,0.64549753]
[1758059337113,0.02682242,116790.0,116780.0,0.64389753]
[1758059337633,0.02682242,116790.0,116780.0,0.64549753]
[1758059341515,0.0011,116790.0,116780.0,0.64549753]
[1758059341935,0.0011,116790.0,116780.0,1.07121669]
[1758059342144,0.001,116790.0,116780.0,1.07121669]
[1758059342912,0.001,116790.0,116780.0,1.33777669]
[1758059343335,0.02585916,116800.0,116790.0,0.17124753]
[1758059343700,0.02585916,116800.0,116790.0,0.65165584]
[1758059343881,0.02585916,116800.0,116790.0,0.63662109]
[1758059344118,0.02585916,116800.0,116790.0,0.63672109]
[1758059345082,0.02585916,116800.0,116790.0,0.63772109]
[1758059346443,0.02585916,116800.0,116790.0,0.27921898]
[1758059346603,0.02575916,116800.0,116790.0,0.63772109]
[1758059346798,0.02575916,116800.0,116790.0,1.03772109]
[1758059347254,0.02575916,116800.0,116790.0,1.0634393]
[1758059348097,4e-05,116800.0,116790.0,1.0634393]
[1758059355884,4e-05,116800.0,116790.0,1.51117947]
[1758059358940,4e-05,116800.0,116790.0,1.85117947]
[1758059360619,4e-05,116800.0,116790.0,2.11765947]
[1758059365868,4e-05,116800.0,116790.0,1.31141719]
[1758059366079,4e-05,116800.0,116790.0,2.11765947]
[1758059367056,4e-05,116800.0,116790.0,2.52078061]
[1758059367594,4e-05,116800.0,116790.0,1.31141719]
[1758059367763,4e-05,116800.0,116790.0,2.11765947]
[1758059372020,4e-05,116800.0,116790.0,2.52078061]
[1758059374086,4e-05,116800.0,116790.0,2.51978061]
[1758059375182,0.00504,116800.0,116790.0,2.51978061]
[1758059375396,0.00504,116800.0,116790.0,2.84870061]
[1758059375619,0.00304,116800.0,116790.0,2.84870061]
[1758059375955,0.01104,116800.0,116790.0,2.84870061]
[1758059377191,0.00804,116800.0,116790.0,2.84870061]
[1758059377611,0.01504,116800.0,116790.0,2.84870061]
[1758059380069,0.01504,116800.0,116790.0,2.93090061]
[1758059417845,0.01504,116800.0,116790.0,2.43799099]
[1758059427812,0.01504,116800.0,116790.0,2.17151099]
[1758059428020,0.01504,116800.0,116790.0,2.42119099]
[1758059428220,0.01504,116800.0,116790.0,2.41959099]
[1758059429258,0.01504,116800.0,116790.0,2.43627099]
[1758059430389,0.01504,116800.0,116790.0,2.41959099]
[1758059431614,0.01504,116800.0,116790.0,2.15323099]
[1758059431840,0.01504,116800.0,116790.0,2.41955099]
[1758059432786,0.01504,116800.0,116790.0,2.15323099]
[1758059433018,0.01504,116800.0,116790.0,2.41955099]
[1758059434516,0.01504,116800.0,116790.0,2.43623099]
[1758059435256,0.01504,116800.0,116790.0,2.16991099]
[1758059435491,0.01504,116800.0,116790.0,2.43623099]
[1758059439694,0.01504,116800.0,116790.0,2.15323099]
[1758059439953,0.01504,116800.0,116790.0,2.43623099]
[1758059440146,0.01504,116800.0,116790.0,2.43783099]
[1758059460359,0.01504,116800.0,116790.0,2.42115099]
[1758059460553,0.01504,116800.0,116790.0,2.43783099]
[1758059464322,0.01504,116800.0,116790.0,2.17151099]
[1758059464548,0.01504,116800.0,116790.0,2.43779099]
[1758059479905,0.01504,116800.0,116790.0,2.52747411]
[1758059495904,0.01504,116800.0,116790.0,2.52743411]
[1758059512036,0.01504,116800.0,116790.0,2.52583411]
[1758059512746,0.01504,116800.0,116790.0,2.52743411]
[1758059515430,0.01504,116800.0,116790.0,2.52583411]
[1758059517254,0.01504,116800.0,116790.0,2.50915411]
[1758059517453,0.01504,116800.0,116790.0,2.52583411]
[1758059519140,0.01504,116800.0,116790.0,2.52743411]
[1758059520507,0.01504,116800.0,116790.0,2.52583411]
[1758059522779,0.01504,116800.0,116790.0,2.52743411]
[1758059526122,0.01504,116800.0,116790.0,2.91382257]
[1758059526363,0.01504,116800.0,116790.0,2.93050257]
[1758059539826,0.00804,116800.0,116790.0,2.43771339]
[1758059540032,4e-05,116800.0,116790.0,2.43771339]
[1758059540236,0.01304,116800.0,116790.0,2.43771339]
[1758059540631,0.00704,116800.0,116790.0,2.43771339]
[1758059541062,0.01304,116800.0,116790.0,2.43771339]
[1758059542925,0.01304,116800.0,116790.0,2.07950529]
[1758059543220,0.01304,116800.0,116790.0,2.43771339]
[1758059557348,0.01304,116800.0,116790.0,2.07950529]
[1758059560733,0.01304,116800.0,116790.0,2.43771339]
[1758059567145,0.01304,116800.0,116790.0,2.07982529]
[1758059572023,0.01304,116800.0,116790.0,2.43803339]
[1758059579935,0.01304,116800.0,116790.0,2.07982529]
[1758059580653,0.01304,116800.0,116790.0,1.81326529]
[1758059580842,0.01304,116800.0,116790.0,2.07970529]
[1758059583596,0.01304,116800.0,116790.0,2.07966529]
[1758059584049,0.01304,116800.0,116790.0,2.43787339]
[1758059584454,0.01304,116800.0,116790.0,2.76675339]
[1758059594751,0.01304,116800.0,116790.0,2.05033719]
[1758059594955,0.01304,116800.0,116790.0,2.76675339]
[1758059599786,0.01304,116800.0,116790.0,2.85641123]
[1758059622413,0.01304,116800.0,116790.0,2.85481123]
[1758059622618,0.01304,116800.0,116790.0,2.85641123]
[1758059624274,0.01304,116800.0,116790.0,2.85633123]
[1758059624844,0.01304,116800.0,116790.0,2.85473123]
[1758059626827,0.01304,116800.0,116790.0,2.85633123]
[1758059634793,0.01304,116800.0,116790.0,2.59001123]
[1758059635009,0.01304,116800.0,116790.0,2.85621123]
[1758059650251,0.01304,116800.0,116790.0,2.83793123]
[1758059650776,0.01304,116800.0,116790.0,2.85621123]
[1758059655926,0.01304,116800.0,116790.0,2.59001123]
[1758059656084,0.01304,116800.0,116790.0,2.85621123]
[1758059658656,0.01304,116800.0,116790.0,2.83953123]
[1758059661897,0.01304,116800.0,116790.0,2.39170438]
[1758059664248,0.01304,116800.0,116790.0,2.39010438]
[1758059667852,0.01304,116800.0,116790.0,2.40678438]
[1758059668253,0.01304,116800.0,116790.0,2.39010438]
[1758059673481,0.01304,116800.0,116790.0,2.40678438]
[1758059674086,0.01304,116800.0,116790.0,2.39010438]
[1758059676479,0.01304,116800.0,116790.0,2.40678438]
[1758059676783,0.01304,116800.0,116790.0,2.39010438]
[1758059677390,0.01304,116800.0,116790.0,2.40678438]
[1758059678150,0.01304,116800.0,116790.0,2.39010438]
[1758059678358,0.01304,116800.0,116790.0,2.40678438]
[1758059680420,0.01304,116800.0,116790.0,2.39010438]
[1758059681377,0.01304,116800.0,116790.0,2.40678438]
[1758059681992,0.01304,116800.0,116790.0,2.39010438]
[1758059685744,0.01304,116800.0,116790.0,2.40678438]
[1758059686560,0.01304,116800.0,116790.0,2.39010438]
[1758059695066,0.01304,116800.0,116790.0,2.39170438]
[1758059695269,0.01304,116800.0,116790.0,2.39010438]
[1758059695473,0.01304,116800.0,116790.0,2.40678438]
[1758059696123,0.01304,116800.0,116790.0,2.39010438]
[1758059703726,0.01304,116800.0,116790.0,2.12390438]
[1758059703930,0.01304,116800.0,116790.0,2.39006438]
[1758059706027,0.01304,116800.0,116790.0,2.40674438]
[1758059706245,0.01304,116800.0,116790.0,2.40834438]
[1758059706400,0.01304,116800.0,116790.0,2.76659157]
[1758059721818,0.01304,116800.0,116790.0,2.85607751]
[1758059724679,0.01304,116800.0,116790.0,3.25906767]
[1758059726943,0.01304,116800.0,116790.0,2.85607751]
[1758059728020,0.01304,116800.0,116790.0,3.25906767]
[1758059728242,0.01304,116800.0,116790.0,2.85607751]
[1758059729716,0.01304,116800.0,116790.0,3.25906767]
[1758059729971,0.01304,116800.0,116790.0,3.24090767]
[1758059730096,0.01304,116800.0,116790.0,3.25918767]
[1758059730530,0.01304,116800.0,116790.0,2.85619751]
[1758059732393,0.01304,116800.0,116790.0,3.25918767]
[1758059737431,0.01304,116800.0,116790.0,2.99290767]
[1758059737690,0.01304,116800.0,116790.0,3.25914767]
[1758059752298,0.01333,116800.0,116790.0,3.25914767]
[1758059753038,0.02757,116830.0,116820.0,0.17120356]
[1758059753267,0.02956,116830.0,116820.0,1.42924568]
[1758059753510,0.02956,116830.0,116820.0,1.41212533]
[1758059753697,0.02956,116830.0,116820.0,1.81212533]
[1758059753934,0.02956,116830.0,116820.0,1.83783228]
[1758059754190,0.02960687,116830.0,116820.0,1.83783228]
[1758059754406,0.02960687,116830.0,116820.0,1.83793228]
[1758059754751,0.02960687,116830.0,116820.0,1.84193228]
[1758059754953,0.00203687,116830.0,116820.0,1.84392228]
[1758059755327,0.00203687,116830.0,116820.0,1.83992228]
[1758059756657,4.687e-05,116830.0,116820.0,1.83992228]
[1758059756836,0.00200687,116830.0,116820.0,2.17992228]
[1758059757593,0.00200687,116830.0,116820.0,2.50876228]
[1758059758056,0.02574687,116830.0,116820.0,2.50876228]
[1758059758256,0.02574687,116830.0,116820.0,1.70278196]
[1758059758462,0.00200687,116830.0,116820.0,2.50876228]
[1758059758715,4.687e-05,116830.0,116820.0,2.52704228]
[1758059759019,4.687e-05,116830.0,116820.0,2.59008714]
[1758059764323,4.687e-05,116830.0,116820.0,2.9930773]
[1758059764529,4.687e-05,116830.0,116820.0,3.0232292]
[1758059768526,4.687e-05,116830.0,116820.0,3.2890292]
[1758059769382,4.687e-05,116830.0,116820.0,3.0232292]
[1758059773944,0.02785,116860.0,116850.0,1.31713992]
[1758059774152,0.0278969,116860.0,116850.0,1.75288137]
[1758059774357,0.0300469,116860.0,116850.0,1.75288137]
[1758059774562,0.0300469,116860.0,116850.0,1.75298137]
[1758059774769,0.0300469,116860.0,116850.0,2.1786822]
[1758059775279,0.0300469,116860.0,116850.0,2.18724988]
[1758059775661,0.0310469,116860.0,116850.0,2.18724988]
[1758059778682,0.0310469,116860.0,116850.0,2.25328281]
[1758059780133,0.0300469,116860.0,116850.0,2.25328281]
[1758059780329,0.0330469,116860.0,116850.0,2.25328281]
[1758059780747,0.0330469,116860.0,116850.0,2.25113281]
[1758059783788,0.0330469,116860.0,116850.0,1.80304979]
[1758059786846,0.0330469,116860.0,116850.0,2.13180979]
[1758059790277,0.0032469,116860.0,116850.0,2.13395979]
[1758059790487,0.0032469,116860.0,116850.0,2.15223979]
[1758059791678,0.0032469,116860.0,116850.0,2.15063979]
[1758059793264,0.0032469,116860.0,116850.0,2.13395979]
[1758059793678,0.0032469,116860.0,116850.0,2.15223979]
[1758059799616,0.0032469,116860.0,116850.0,2.15063979]
[1758059800086,0.0032469,116860.0,116850.0,2.15223979]
[1758059801509,0.0032469,116860.0,116850.0,2.15063979]
[1758059802264,0.0032469,116860.0,116850.0,2.15223979]
[1758059802900,0.0032469,116860.0,116850.0,2.15063979]
[1758059804052,0.0032469,116860.0,116850.0,2.15223979]
[1758059805968,0.0032469,116860.0,116850.0,2.48095979]
[1758059808471,0.0032469,116860.0,116850.0,2.47935979]
[1758059809226,0.0032469,116860.0,116850.0,2.48095979]
[1758059810038,0.0032469,116860.0,116850.0,2.46267979]
[1758059810335,0.0326069,116860.0,116850.0,2.46052979]
[1758059810555,0.0326069,116860.0,116850.0,2.19348979]
[1758059810762,0.0326069,116860.0,116850.0,2.46004979]
[1758059810986,0.0294869,116860.0,116850.0,2.46221979]
[1758059811184,0.0053569,116860.0,116850.0,2.46221979]
[1758059811392,0.0032469,116860.0,116850.0,2.46221979]
[1758059815018,0.0086069,116860.0,116850.0,2.46004979]
[1758059815423,0.0032469,116860.0,116850.0,2.46211979]
[1758059816008,0.0032469,116860.0,116850.0,2.47879979]
[1758059816815,0.0002,116870.0,116860.0,0.51114495]
[1758059817021,0.0002,116870.0,116860.0,1.2220637]
[1758059817221,0.02733,116870.0,116860.0,1.2220637]
[1758059817482,0.03054,116870.0,116860.0,1.6220637]
[1758059817689,0.03054,116870.0,116860.0,1.64786185]
[1758059818599,0.03354,116870.0,116860.0,1.64786185]
[1758059820350,0.03354,116870.0,116860.0,1.73002185]
[1758059822194,0.0032,116870.0,116860.0,1.73209185]
[1758059823322,0.0032,116870.0,116860.0,1.73369185]
[1758059823553,0.0032,116870.0,116860.0,1.75037185]
[1758059824169,0.03377868,116880.0,116870.0,0.51113031]
[1758059824381,0.03377868,116880.0,116870.0,1.5966873]
[1758059824550,0.03377868,116880.0,116870.0,1.5987673]
[1758059824883,0.03377868,116880.0,116870.0,2.00788173]
[1758059827232,0.03377868,116880.0,116870.0,2.11566463]
[1758059829551,0.03377868,116880.0,116870.0,2.00788173]
[1758059829845,0.03377868,116880.0,116870.0,2.11566463]
[1758059830050,0.03377868,116880.0,116870.0,2.13394463]
[1758059830586,0.03583868,116880.0,116870.0,2.11566463]
[1758059831161,0.03377868,116880.0,116870.0,2.11566463]
[1758059831373,0.03377868,116880.0,116870.0,2.13234463]
[1758059834456,0.03377868,116880.0,116870.0,2.11566463]
[1758059834881,0.03377868,116880.0,116870.0,1.84922463]
[1758059835085,0.03377868,116880.0,116870.0,2.11550463]
[1758059835528,0.03377868,116880.0,116870.0,2.13218463]
[1758059836508,0.0002,116880.0,116870.0,2.13218463]
[1758059837283,0.0002,116880.0,116870.0,2.02440173]
[1758059837840,0.0002,116880.0,116870.0,2.02600173]
[1758059840732,1e-08,116880.0,116870.0,2.05615363]
[1758059845559,1e-08,116880.0,116870.0,2.03947363]
[1758059845784,1e-08,116880.0,116870.0,1.69825633]
[1758059845999,1e-08,116880.0,116870.0,2.54739382]
[1758059846644,1e-08,116880.0,116870.0,2.14504889]
[1758059849491,1e-08,116880.0,116870.0,2.47368889]
[1758059850155,1e-08,116880.0,116870.0,2.87603382]
[1758059852529,0.0034,116920.0,116910.0,0.17107176]
[1758059852750,0.0002,116920.0,116910.0,1.67683814]
[1758059852966,0.0002,116920.0,116910.0,1.83182307]
[1758059853193,0.0002,116920.0,116910.0,2.49794307]
[1758059853876,0.00066926,116920.0,116910.0,2.52288307]
[1758059855697,0.00066926,116920.0,116910.0,2.925328]
[1758059855909,0.00066926,116920.0,116910.0,2.9570799]
[1758059857441,0.02494,116940.0,116930.0,0.34]
[1758059857656,0.0279,116940.0,116930.0,1.66836086]
[1758059857866,0.02993,116940.0,116930.0,1.67714384]
[1758059858256,0.02993,116940.0,116930.0,2.07714384]
[1758059858620,0.02993,116940.0,116930.0,2.07724384]
[1758059858827,0.02493,116940.0,116930.0,2.07724384]
[1758059859231,0.00499,116940.0,116930.0,2.07724384]
[1758059859658,0.00499,116940.0,116930.0,1.81116384]
[1758059859858,0.00499,116940.0,116930.0,2.07724384]
[1758059860756,0.00499,116940.0,116930.0,1.81116384]
[1758059860978,0.02986,116940.0,116930.0,2.07724384]
[1758059861203,0.02986,116940.0,116930.0,2.07924384]
[1758059862559,0.02986,116940.0,116930.0,1.81316384]
[1758059862760,0.02986,116940.0,116930.0,2.07924384]
[1758059863622,0.02986,116940.0,116930.0,1.81316384]
[1758059863834,0.02986,116940.0,116930.0,2.07920384]
[1758059864157,0.02986,116940.0,116930.0,1.81316384]
[1758059864356,0.02986,116940.0,116930.0,2.07920384]
[1758059869522,0.00499,116940.0,116930.0,2.07920384]
[1758059869862,0.02986,116940.0,116930.0,2.07920384]
[1758059870942,0.02986,116940.0,116930.0,1.81316384]
[1758059871166,0.02986,116940.0,116930.0,2.07920384]
[1758059878334,0.02986,116940.0,116930.0,1.81316384]
[1758059878503,0.02986,116940.0,116930.0,1.67681891]
[1758059878911,0.02986,116940.0,116930.0,1.75893891]
[1758059879755,0.02986,116940.0,116930.0,1.75015593]
[1758059880590,0.02986,116940.0,116930.0,2.15250086]
[1758059880992,0.02986,116940.0,116930.0,2.16092743]
[1758059882957,0.02986,116940.0,116930.0,1.7585825]
[1758059885200,0.02986,116940.0,116930.0,1.4925825]
[1758059885410,0.02986,116940.0,116930.0,1.7585825]
[1758059888552,0.02986,116940.0,116930.0,1.4925825]
[1758059889379,0.02986,116940.0,116930.0,1.7585825]
[1758059893939,0.02986,116940.0,116930.0,1.4925825]
[1758059894139,0.02986,116940.0,116930.0,2.0871025]
[1758059905958,0.02986,116940.0,116930.0,2.04226055]
[1758059914933,0.02834,116940.0,116930.0,2.04226055]
[1758059919050,0.02834,116940.0,116930.0,2.04222055]
[1758059919881,0.02834,116940.0,116930.0,1.77626055]
[1758059920112,0.02834,116940.0,116930.0,2.04222055]
[1758059920734,0.02834,116940.0,116930.0,1.41875757]
[1758059920937,0.02834,116940.0,116930.0,1.68471757]
[1758059925496,0.02834,116940.0,116930.0,1.71040148]
[1758059928311,0.02834,116940.0,116930.0,1.70840148]
[1758059928626,0.02834,116940.0,116930.0,1.70940148]
[1758059931315,0.02834,116940.0,116930.0,1.70840148]
[1758059933235,0.02834,116940.0,116930.0,1.71040148]
[1758059934474,0.02834,116940.0,116930.0,1.70197491]
[1758059941500,0.02834,116940.0,116930.0,1.71074356]
[1758059942277,0.05402391,116940.0,116930.0,1.71074356]
[1758059946445,0.02834,116940.0,116930.0,1.71074356]
[1758059946861,0.02834,116940.0,116930.0,1.70197491]
[1758059949222,0.02834,116940.0,116930.0,1.070331]
[1758059949444,0.02834,116940.0,116930.0,0.936291]
[1758059949575,0.22576997,116940.0,116930.0,0.7652485]
[1758059949845,0.27505385,116940.0,116930.0,0.7652485]
[1758059950171,0.63255683,116940.0,116930.0,0.34822705]
[1758059950409,0.63265683,116940.0,116930.0,0.34822705]
[1758059950525,0.66280873,116940.0,116930.0,0.35422705]
[1758059951597,0.66280873,116940.0,116930.0,0.35722705]
[1758059951811,0.66280873,116940.0,116930.0,0.35712705]
[1758059952628,0.66280873,116940.0,116930.0,0.27500705]
[1758059955936,0.66280873,116940.0,116930.0,0.00904705]
[1758059956229,0.66280873,116940.0,116930.0,0.27500705]
[1758059959075,0.67280873,116940.0,116930.0,0.27500705]
[1758059959607,1.01280873,116940.0,116930.0,0.00904705]
[1758059963915,0.65530575,116940.0,116930.0,0.00904705]
[1758059964113,1.01280873,116940.0,116930.0,0.00904705]
[1758059964352,1.09931018,116940.0,116930.0,0.00904705]
[1758059966364,0.7418072,116940.0,116930.0,0.00904705]
[1758059966570,1.36531018,116940.0,116930.0,0.00904705]
[1758059967145,1.38128855,116940.0,116930.0,0.00904705]
[1758059967727,1.82875569,116940.0,116930.0,0.00904705]
[1758059971209,1.83474849,116940.0,116930.0,0.00904705]
[1758059973028,1.83475335,116940.0,116930.0,0.00904705]
[1758059975628,1.56875335,116940.0,116930.0,0.00904705]
[1758059975856,1.83479335,116940.0,116930.0,0.00904705]
[1758059976285,1.02978323,116940.0,116930.0,0.00904705]
[1758059976502,1.83476653,116940.0,116930.0,0.00904705]
[1758059976937,1.83477147,116940.0,116930.0,0.00904705]
[1758059979046,1.83477147,116940.0,116930.0,4.705e-05]
[1758059979619,1.83477147,116940.0,116930.0,0.00504705]
[1758059981703,1.02980135,116940.0,116930.0,0.00504705]
[1758059981912,1.83477147,116940.0,116930.0,0.00504705]
[1758059983996,1.83480175,116940.0,116930.0,0.00504705]
[1758059986787,1.83492175,116940.0,116930.0,0.00504705]
[1758059988688,1.83493866,116940.0,116930.0,0.00504705]
[1758059989826,1.83489866,116940.0,116930.0,0.00504705]
[1758059991588,1.56881866,116940.0,116930.0,0.00504705]
[1758059991776,1.83489866,116940.0,116930.0,0.00504705]
[1758059999589,1.83490077,116940.0,116930.0,0.00504705]
[1758060000438,1.02993065,116940.0,116930.0,0.00504705]
[1758060000933,1.83490077,116940.0,116930.0,0.00504705]